Cogmind - Beta 15 @@@ ROGUE MODE // 2025.08.15 @ 17:01:54 Player: Zen9890 Result: Destroyed by Y-45 Defender with Heavy Assault Rifle Performance ------------- Evolutions (1) 500 Regions Visited (3) 600 Robots Destroyed (70) 350 Value Destroyed (1163) 1163 Prototype IDs (7) 140 Alien Tech Used (0) 0 Bonus (0) 0 TOTAL SCORE: 2753 Bonus ------- None Cogmind --------- Core Integrity 0/400 Matter 300/300 Energy 98/100 System Corruption 7% Temperature Cool (10) Movement Treading (240) Ox1 Location -9/Storage Parts ------- > --- POWER (1) -------- Backup Power I > --- PROPULSION (2) --- Light Treads Backup Propulsion I > --- UTILITY (2) ------ Drone Bay (2/2) Drone Bay (2/2) > --- WEAPON (4) ------- Maul Maul Heavy Hammer > --- INVENTORY (5) ---- Drone Bay (2/2) Drone Bay (2/2) Drone Bay (2/2) Plasma Cutter Peak State ------------ > --- POWER ------------ Improved Ion Engine > --- PROPULSION ------- Light Treads Improved Treads > --- UTILITY ---------- Small Storage Unit Improved Terrain Scanner > --- WEAPON ----------- Maul Maul Maul Maul > --- INVENTORY -------- Drone Bay Drone Bay Drone Bay Drone Bay Drone Bay Drone Bay Drone Bay Grenade Launcher [Rating: 20] Favorites ----------- Power Light Ion Engine Engine Light Ion Engine Propulsion Light Treads Treads Light Treads Leg Aluminum Leg Hover Unit Backup Propulsion I Utility Small Storage Unit Device Improved Terrain Scanner Storage Small Storage Unit Weapon Maul Ballistic Gun Light Assault Rifle Special Weapon Plasma Cutter Impact Weapon Maul Slashing Weapon Mining Claw Build | -11 -10 -9 -9 ------- Run | Yrd Mat Mat Sto Slots Evolved 2 | . . 2 . Power . | . . . . Propulsion . | . . . . Utility . | . . . . Weapon 2 | . . 2 . Parts Attached 34 | 9 6 4 15 Power 7 | 2 1 1 3 Engine 7 | 2 1 1 3 Core . | . . . . Reactor . | . . . . Propulsion 11 | 3 1 1 6 Treads 6 | 1 . 1 4 Leg 5 | 2 1 . 2 Wheel . | . . . . Hover . | . . . . Flight . | . . . . Utility 6 | 2 . . 4 Device 5 | 1 . . 4 Storage 1 | 1 . . . Processor . | . . . . Hackware . | . . . . Protection . | . . . . Artifact . | . . . . Weapon 10 | 2 4 2 2 Energy Gun . | . . . . Energy Cannon . | . . . . Ballistic Gun 2 | 2 . . . Ballistic Cannon . | . . . . Launcher . | . . . . Special Weapon 1 | . . . 1 Impact Weapon 6 | . 3 2 1 Slashing Weapon 1 | . 1 . . Piercing Weapon . | . . . . Special Melee Weapon . | . . . . Unidentified Prototypes . | . . . . Corrupted Parts 1 | . . . 1 System Corruption 5 | . . . 5 Parts Lost 14 | . 3 . 11 Power 3 | . 1 . 2 Propulsion 6 | . 2 . 4 Utility 4 | . . . 4 Weapon 1 | . . . 1 Highest Loss Streak 4 | . 3 . 4 To Critical Strikes 1 | . . . 1 Average Backups 6 | 3 7 6 7 Power . | . 1 1 . Propulsion . | 1 2 1 . Utility 3 | . . . 5 Weapon 1 | 1 4 3 1 Tool/Special . | . . . . Unused Backups 12 | . 4 2 6 Power 1 | . . . 1 Propulsion 3 | . 1 2 . Utility 3 | . . . 3 Weapon 5 | . 3 . 2 Tool/Special . | . . . . Average Slot Usage (%) 81 | . 94 99 74 Engine 6 | . 12 11 3 Treads 9 | . 2 21 9 Leg 7 | . 21 . 3 Device 9 | . 14 11 7 Storage 10 | . 14 11 9 Impact Weapon 36 | . 22 43 39 Peak Build Rating 20 | 9 12 15 20 Average Rating 14 | 6 10 14 15 On Entrance 9 | . 9 12 15 Naked Turns . | . . . . Heaviest Build 25 | 12 15 21 25 Greatest Support 43 | 20 20 40 43 Greatest Overweight (x) 7 | 3 1 . 7 Average Overweight (x) . | . . . . Largest Inventory Capacity 8 | 8 8 8 8 Average Capacity 7 | 7 8 8 7 Most Carried 8 | 6 8 7 8 Average Carried 6 | 3 7 6 7 Final Capacity 8 | 8 8 8 5 Final Carried 8 | 6 8 6 4 Class Distribution -------------------- 100% | Mutant Dominant Class ---------------- Mutant | -10/Materials Mutant | -9/Materials Mutant | -9/Storage Resources | -11 -10 -9 -9 ----------- Run | Yrd Mat Mat Sto Matter Collected 632 | 328 70 50 184 Remotely . | . . . . Salvage Created 2275 | 129 421 157 1568 Parts 73 | 8 14 10 41 Haulers Intercepted 5 | . 1 1 3 Recyclers Shooed 3 | 1 . . 2 Parts Field Recycled . | . . . . Retrieved Matter . | . . . . Parts Self-Destructed . | . . . . Prevented . | . . . . Kills | -11 -10 -9 -9 ------- Run | Yrd Mat Mat Sto Combat Hostiles Destroyed 36 | . 5 6 25 Melee 25 | . 2 4 19 Classes Destroyed 9 | 2 5 2 . Worker 9 | . 2 . 7 Builder 3 | . 1 . 2 Tunneler 3 | 2 1 . . Hauler 5 | . 1 1 3 Recycler 12 | 1 2 . 9 Watcher 2 | . 2 . . Swarmer 15 | . . 3 12 Grunt 14 | . 5 2 7 Sentry 7 | . . 1 6 Best Kill Streak 12 | 2 8 4 12 Combat Bots Only 6 | . 2 4 6 Max Kills in Single Turn 1 | 1 1 1 1 Gunslinging . | . . . . Exploded . | . . . . Melee 1 | . 1 1 1 Uniques/NPCs Destroyed . | . . . . Combat | -11 -10 -9 -9 -------- Run | Yrd Mat Mat Sto Hostile Shots Fired 294 | . 48 43 203 Missed 82 | . 11 12 59 Hits 212 | . 37 31 144 Projectile 212 | . 37 31 144 Critical Strikes 4 | . 1 . 3 Damage Taken 2646 | . 494 307 1845 Core 534 | . 128 55 351 Absorbed by Shields . | . . . . Regen/Repaired (Parts) 98 | . . . 98 Core Remaining (%) 74 | 100 48 . . Volleys Fired 18 | 14 . . 4 Largest 2 | 2 . . 1 Hottest 40 | 40 . . 20 Shots Fired 32 | 28 . . 4 Gun 28 | 28 . . . Cannon . | . . . . Launcher . | . . . . Special 4 | . . . 4 Kinetic 28 | 28 . . . Thermal 4 | . . . 4 Explosive . | . . . . Electromagnetic . | . . . . Robot Hit Streak 7 | 7 . . 5 Robot Miss Streak 4 | 4 . . . Penetration Max . | . . . . Secondary Targets . | . . . . Shots Hit Robots 153 | 19 28 18 88 Core Hits 34 | 8 7 4 15 Critical Kills 5 | . . . 5 Critical Parts Destroyed 22 | . 2 1 19 Critical Strikes 29 | . 2 2 25 Smash 29 | . 2 2 25 Melee Attacks 330 | . 43 26 261 Impact 329 | . 42 26 261 Slashing 1 | . 1 . . Piercing . | . . . . Sneak Attacks 37 | . 6 1 30 Combat Hostiles . | . . . . Follow-up Attacks 34 | . 4 7 23 Damage Inflicted 6830 | 148 1374 665 4643 Guns 148 | 148 . . . Cannons . | . . . . Explosions . | . . . . Melee 6671 | . 1374 665 4632 Ramming . | . . . . Kinetic 148 | 148 . . . Thermal 11 | . . . 11 Explosive . | . . . . Electromagnetic . | . . . . Impact 6671 | . 1374 665 4632 Slashing . | . . . . Piercing . | . . . . Highest Corruption 7 | . . . 7 Average Corruption 4 | . . . 4 Corruption Purged . | . . . . Corruption Blocked . | . . . . Effects 6 | . . . 6 Message Errors 1 | . . . 1 Matter Fused 1 | . . . 1 Heat Flow Errors 1 | . . . 1 Data Loss (minor) 2 | . . . 2 Data Loss (major) 1 | . . . 1 Overload Shots . | . . . . Overflow Damage 2449 | . 314 129 2006 Projectiles . | . . . . Explosions . | . . . . Melee 2449 | . 314 129 2006 Knockbacks 17 | . 6 1 10 Impact 17 | . 6 1 10 Kinetic . | . . . . Secondary . | . . . . Self-Inflicted Damage . | . . . . Shots . | . . . . Rammed . | . . . . Targets Rammed . | . . . . Kicked . | . . . . Crushed . | . . . . Highest Temperature 117 | . 10 . 117 Average Temperature 52 | . 10 . 61 Received Heat Transfer 780 | . 297 54 429 Siege Activations . | . . . . Martial Activations . | . . . . Shielding Activations . | . . . . Robots Disrupted . | . . . . Combat Hostiles . | . . . . Robots Corrupted 21 | . 4 2 15 Combat Hostiles 11 | . 3 2 6 Parts Fried 34 | . 8 3 23 Impact Corruptions 90 | . 11 6 73 Robots Melted . | . . . . Combat Hostiles . | . . . . Parts Melted . | . . . . Heat Transferred 37 | . . . 37 Parts Sabotaged . | . . . . Parts Stolen . | . . . . Parts Stripped . | . . . . Power Chain Reactions . | . . . . Alert | -11 -10 -9 -9 ------- Run | Yrd Mat Mat Sto Maximum Alert Level 1 | . . . 1 Low Security (%) 79 | 100 100 100 69 Level 1 20 | . . . 30 Level 2 . | . . . . Level 3 . | . . . . Level 4 . | . . . . Level 5 . | . . . . High Security . | . . . . Max Security . | . . . . Peak Influence 338 | 5 135 110 338 Initial 40 | . . 15 40 Average 128 | . 47 62 173 Influence Increases 1393 | 15 249 179 950 Destroy 0b10 Robot/C 720 | . 100 120 500 Destroy 0b10 Robot/NC 185 | 15 45 5 120 Destroy Leader 164 | . 26 22 116 Successful Hack 45 | . . 2 43 Disable Machine 75 | . . . 75 Destroy Structure 69 | . 3 . 66 Partial Spotted 15 | . 15 . . Lose Combat Pursuer 120 | . 60 30 30 Influence Decreases 1082 | 15 211 120 736 Entered New Map 80 | . . 23 57 Time Decay 868 | 15 197 97 559 Lost Part 124 | . 14 . 110 Lost Ally 10 | . . . 10 Squads Dispatched 5 | . 2 1 2 Investigation 3 | . . 1 2 Extermination . | . . . . Reinforcement 2 | . 2 . . Assault . | . . . . Garrison . | . . . . Intercept . | . . . . Searches Triggered . | . . . . Construction Impeded . | . . . . Haulers Reinforced . | . . . . Active Scanning Responses . | . . . . Cargo Convoy Interrupts . | . . . . Stealth | -11 -10 -9 -9 --------- Run | Yrd Mat Mat Sto Distress Signals 2 | . 1 . 1 Communications Jammed . | . . . . Distress Signals . | . . . . Times Spotted 56 | . 15 9 32 Peak Tracking Total 6 | . 4 6 4 Tactical Retreats 5 | . 1 2 2 Traps | -11 -10 -9 -9 ------- Run | Yrd Mat Mat Sto Traps Triggered 2 | . . . 2 Indirectly . | . . . . Trap Hack Attempts . | . . . . Triggered . | . . . . Disarmed . | . . . . Reprogrammed . | . . . . Reused . | . . . . Traps Extracted . | . . . . Installed . | . . . . Triggered . | . . . . Machines | -11 -10 -9 -9 ---------- Run | Yrd Mat Mat Sto Machines Disabled 5 | . . . 5 Max in Single Turn 1 | . . . 1 Machines Repaired . | . . . . Machines Dismantled 1 | . . . 1 Machines Sabotaged . | . . . . Overloaded Fab Kills . | . . . . Hacking | -11 -10 -9 -9 --------- Run | Yrd Mat Mat Sto Machines Accessed 8 | . 1 1 6 Terminals 5 | . 1 . 4 Fabricators . | . . . . Repair Stations 2 | . . . 2 Recycling Units . | . . . . Scanalyzers 1 | . . 1 . Garrison Access . | . . . . Total Hacks 32 | . 4 4 24 Successful 16 | . 1 3 12 Failed 16 | . 3 1 12 Catastrophic 2 | . . . 2 Database Lockouts . | . . . . Manual 4 | . 2 . 2 Terminals 25 | . 4 . 21 Fabricators . | . . . . Repair Stations 3 | . . . 3 Recycling Units . | . . . . Scanalyzers 4 | . . 4 . Garrison Access . | . . . . Terminal Hacks 10 | . 1 . 9 Prototype ID Bank 4 | . 1 . 3 Open Door 1 | . . . 1 Branch Access Points 1 | . . . 1 Garrison Index 1 | . . . 1 Dispatch Records 1 | . . . 1 Hauler Manifests 1 | . . . 1 Zone Layout 1 | . . . 1 Fabricator Hacks . | . . . . Repair Station Hacks 3 | . . . 3 Scan Component 1 | . . . 1 Repair 1 | . . . 1 Refit 1 | . . . 1 Recycling Unit Hacks . | . . . . Scanalyzer 3 | . . 3 . Insert Component 2 | . . 2 . Analyze 1 | . . 1 . Garrison Access Hacks . | . . . . Unauthorized Hacks . | . . . . Terminals . | . . . . Fabricators . | . . . . Repair Stations . | . . . . Recycling Units . | . . . . Scanalyzers . | . . . . Garrison Access . | . . . . Data Cores Recovered . | . . . . Used . | . . . . Hacking Detections 5 | . 1 1 3 Full Trace Events 3 | . . 1 2 Feedback Events . | . . . . Feedback Blocked . | . . . . Robot Schematics Acquired . | . . . . Robots Built . | . . . . Authchips . | . . . . Time . | . . . . Total Robot Build Rating . | . . . . Part Schematics Acquired . | . . . . Parts Built . | . . . . Authchips . | . . . . Time . | . . . . Total Part Build Rating . | . . . . Parts Repaired 1 | . . . 1 Time 32 | . . . 32 Parts Recycled . | . . . . Recycled Matter . | . . . . Retrieved Matter . | . . . . Retrieved Components . | . . . . Parts Scanalyzed 1 | . . 1 . Part Schematics Acquired . | . . . . Parts Damaged . | . . . . Bothacking | -11 -10 -9 -9 ------------ Run | Yrd Mat Mat Sto Used RIF Installer . | . . . . Robots Hacked . | . . . . Non-combat . | . . . . Combat . | . . . . Robot Hacks Applied . | . . . . Relay Couplers Released . | . . . . Fabnet Peak Effective % . | . . . . Robots Rewired . | . . . . Allies Hacked . | . . . . Hacks Repelled . | . . . . Allies | -11 -10 -9 -9 -------- Run | Yrd Mat Mat Sto Total Allies . | . . . . Largest Group . | . . . . Highest-Rated Group . | . . . . Highest-Rated Ally . | . . . . Total Orders 6 | . . . 6 EXPLORE 2 | . . . 2 RETURN 4 | . . . 4 Ally Attacks . | . . . . Total Damage . | . . . . Kills . | . . . . Allies Corrupted . | . . . . Allies Melted . | . . . . Intel | -11 -10 -9 -9 ------- Run | Yrd Mat Mat Sto Active Infowar (turns) 1139 | 41 584 220 294 Terrain 1139 | 41 584 220 294 Robot Analysis Total . | . . . . Derelict Logs Recovered . | . . . . Drone Launches 10 | . . . 10 Drone Recoveries 8 | . . . 8 Exploration | -11 -10 -9 -9 ------------- Run | Yrd Mat Mat Sto Turns Passed 2746 | 147 584 220 1795 Spaces Moved 1027 | 77 319 90 541 Core 63 | 18 . . 45 Treads 502 | . 62 90 350 Legs 462 | 59 257 . 146 Wheels . | . . . . Hover . | . . . . Flight . | . . . . Fastest Speed 50 | 50 120 160 120 Average Speed 170 | 113 144 160 196 Slowest Speed 400 | 200 190 160 400 Overloaded Moves . | . . . . Propulsion Burnouts . | . . . . Robots Hopped . | . . . . Potential Cave-ins . | . . . . Cave-ins Triggered 1 | . . . 1 Exploration Rate (%) 31 | 6 40 9 69 Regions Visited 3 Branch Regions 1 Pre-discovered Areas . | . . . . Known Exits Taken . | . . . . Unknown Exits Taken 3 | 1 1 1 . Scrap Searched . | . . . . Spaces Dug 67 | . 3 . 64 Terrain Destroyed 67 | . 3 . 64 Melee 67 | . 3 . 64 Projectile . | . . . . AOE . | . . . . Terrain Rammed . | . . . . Walls Destroyed . | . . . . Machines Disabled . | . . . . Actions | -11 -10 -9 -9 --------- Run | Yrd Mat Mat Sto Total 1445 | 113 374 129 829 Wait 54 | . . 14 40 Move 1024 | 76 318 89 541 Hop . | . . . . Pick Up 38 | 13 9 2 14 Fast Attach 6 | . 2 . 4 Attach 18 | 7 2 3 6 Detach 1 | . . 1 . Swap 16 | 3 3 2 8 Drop 22 | . 7 2 13 Fire 18 | 14 . . 4 Melee 230 | . 33 16 181 Ram . | . . . . Kick . | . . . . Crush . | . . . . Escape Stasis . | . . . . Rewire . | . . . . Trap . | . . . . Miscellaneous 18 | . . . 18 Route ------- -11/Scrapyard -10/Materials -9/Materials -9/Storage (discovered 1 exit: Rec) History --------- Turn | Location | Event 13 | -11/Scrapyard | Discovered new exit (range 16) 148 | -11/Scrapyard | Entered Materials 313 | -10/Materials | Build established: Mutant 391 | -10/Materials | Discovered new exit (range 12) 444 | -10/Materials | Core integrity fell below 50% 487 | -10/Materials | Lost 3 parts (1p2n) 732 | -10/Materials | Entered another Materials area 732 | -9/Materials | Evolved 2 slots: Weapon x2 922 | -9/Materials | Discovered new exit (range 12) 952 | -9/Materials | Entered Storage 1252 | -9/Storage | Repaired Maul 1441 | -9/Storage | Core integrity fell below 50% 2128 | -9/Storage | Identified exit to Recycling 2343 | -9/Storage | Crushed by falling debris 2374 | -9/Storage | Lost 4 parts (1p2n1w) 2501 | -9/Storage | Core integrity fell below 20% 2747 | -9/Storage | Destroyed by Y-45 Defender with Heavy Assault Rifle Last Messages --------------- repairs). 02608_ System corrupted: Substantial component data lost. 02639_ K-01 Serf collects debris. 02645_ Acquired 9 matter. 02645_ R-06 Scavenger collects Hvy. Ion Engine. 02645_ K-01 Serf collects debris. 02649_ R-06 Scavenger collects Lgt. Ion Engine. 02652_ K-01 Serf collects debris. 02653_ R-06 Scavenger collects Grenade Launcher. 02656_ K-01 Serf collects debris. 02673_ System corrupted: Component data lost. 02716_ Critical hit (Burn: +37). 02730_ YQXMFXDP/E EV4#TDFKI2B:PX,UZDR0I# 02739_ Connecting with Repair Station... >>Refit Scanning configuration... Attaching: Backup Power I x1 Backup Propulsion I x1 Map ----- +----------------------------------------------------+ | ????????????????????????????????? | | ????????????????????????????????? | | ????????????????????????????????? | | ????????????????????????????????? | | ??????????#?????????????????????? | | ???????### ##???????????????????? | | ?????? ????????????????????? | | ?????? = ]]??????????????????? | | ??????? ] ??????????????????? | | ??????? ??????????????????? | | ???????? ""????????????????#??? | | ???????? ""??????????????? #??? | | ?????????" "??????????????? #??? | | ?????????" ?????????????? #??? | | ##########+#########+##### #??? | | #??? | | #??? | | #??? | | ##########+######## ##;######???? | | ??????# #??# ## Y [[####? | | ??????# #??# ## [ """#? | | ??????# #??# ## R"#? | | ??????# #??# ## """#? | | ??????# ]] #??# ## ####? | | ####### ]] #??# ## #???? | | + ] #### #####@####??? | | ###### + #??? | | # |||# #### ##### #??? | | # |||#######+##??# #???# #??? | | # |||###???# #???# #???# #??? | | # =%%####### #??##+##### #??? | | + ] # #??# # #??? | | # %+ #??# T # #??? | | # # * #??# # #??? | | # # *% #### # #??? | | # + * |= / # #??? | | # #### |%| # # #??? | | ###### | ##+##+## #??? | | % #??? | | ######### ] #??? | | + "????# % #??? | | #? ?????# %% #??? | | % # ## ##/#####+## #??? | | % + ## #=%%!]]% # #??? | | +#### ## %+ % !]] ! # #??? | | %% # ?? ??# # !=]] # #??? | | ####+##?# % # #?#??? | | """%#??# #??# ##+###########????? | | R" #??# #??# ## #?????????? | | """ ##?# #?## ## !#?????????? | +----------------------------------------------------+ Best States ------------- Heat Dissipation 28 Energy Generation 14 Energy Capacity 280 Matter Stores 300 Matter Capacity 300 Sight Range 16 Terrain Scan Range 16 Terrain Scan Density 10 Evasion (%) 55 Recoil Reduction 2 Item Schematics ----------------- None Robot Schematics ------------------ None Fabricated ------------ Nothing Repaired ---------- Maul | 18% | -9/Storage Alien Tech Used ----------------- None Achievements -------------- Part-time Excavator Challenges ------------ None Game ------ Seed DisintegrationNodeReplicator Manual? 0 Play Time 00:29:00 Cumulative 17.1 hours Start 2025.08.15 @ 16:18:07 End 2025.08.15 @ 17:01:54 Sessions 1 Manual Loads 0 Difficulty Rogue Special Mode None Game No. 24 Rogue 24 Adventurer 0 Explorer 0 Win Type - Total 0 Types 0/0/0/0/0/0/0/0/0/0 Lore% 10 Gallery% 23 Achievement% 23 Wizard Run 0 Options --------- Layout 1 ASCII 0 Keyboard 0 Movement Mouse Keybinds 0 Fullscreen 1 Font 24/Smallcaps Map View 50x35 Zoom Use 0% Tactical HUD 1 Map Filters NONE Filters NONE Steam 1 RUN: 783dbaf2-5dff-486e-876e-227552fddcdc